Workbook

Sheet Cover
B2: 3GPP TSG-RAN WG4 Meeting #94-e | J2: R4-2000613
B3: Online, 24th February - 6th March, 2020
B5: Source: CATT
B6: Title: Summary of ideal and impairment results for NR HST demodulation requirements
B7: Agenda: 8.17.2.2
B8: Document for: Information

Sheet Parameters
C2: Parameters for deriving performance requirements
C3: Ideal Span Threshold | D3: 2 | E3: dB
C4: Impairment Span Threshold | D4: 4 | E4: dB
B7: Notes | C7: 1. Call function DerivingPerfReq()
C8: 2. If the ruls does not apply, or fails, -100dB or less will be returned
D9: -100 | E9: Not enough input
D10: -101 | E10: Input should be pairs
D11: -102 | E11: Too large span for impairment
D12: -103 | E12: After removal iteration, not enough input

Sheet PUSCH 350kmph
A1: Channel model | B1: Propagation condition | C1: Carrier frequency (GHz) | D1: SCS | E1: CBW | F1: Maximum Doppler shift | G1: Tx/Rx | H1: PUSCH mapping type | I1: DMRS | J1: l0 | K1: MCS | L1: 38.104 req | M1: 38.141 req | N1: Samsung | P1: ZTE | R1: CMCC | T1: CATT | V1: Nokia | X1: Huawei | Z1: Ericsson | AB1: SPAN | AD1: AVERAGE
N2: Ideal | O2: Impairment | P2: Ideal | Q2: Impairment | R2: Ideal | S2: Impairment | T2: Ideal | U2: Impairment | V2: Ideal | W2: Impairment | X2: Ideal | Y2: Impairment | Z2: Ideal | AA2: Impairment | AB2: Ideal | AC2: Impairment | AD2: Ideal | AE2: Impairment
A3: AWGN | B3: Tunnel | C3: 2.1 | D3: 15KHz | E3: 10MHz | F3: 1340Hz | G3: 1T1R [FFS] | H3: Type A | I3: 1+1+1 | J3: 2 [FFS] | K3: 2 | L3: =DerivingPerfReq(N3:AA3) -> -100 | M3: =IF(L3>-100,L3+0.3,L3) -> -100 | T3: -3.47 | U3: -1.47 | AB3: =MAX(N3,P3,R3,T3,V3,X3,Z3)-MIN(N3,P3,R3,T3,V3,X3,Z3) -> 0 | AC3: 0 | AD3: =AVERAGE(N3,P3,R3,T3,V3,X3,Z3) -> -3.47 | AE3: -1.47
D4: 15KHz | E4: 10MHz | F4: 1340Hz | G4: 1T1R | H4: Type A | I4: 1+1+1 | J4: 2 [FFS] | K4: 16 | L4: -100 | M4: -100 | T4: 8.65 | U4: 10.65 | AB4: 0 | AC4: 0 | AD4: 8.65 | AE4: 10.65
D5: 15KHz | E5: 10MHz | F5: 1340Hz | G5: 1T2R | H5: Type A | I5: 1+1+1 | J5: 2 [FFS] | K5: 2 | L5: -100 | M5: -100 | T5: -6.2 | U5: -4.2 | V5: -5.93 | W5: -3.43 | AB5: 0.27 | AC5: 0.77 | AD5: -6.065 | AE5: -3.815
D6: 15KHz | E6: 10MHz | F6: 1340Hz | H6: Type A | I6: 1+1+1 | J6: 2 [FFS] | K6: 16 | L6: -100 | M6: -100 | T6: 5.68 | U6: 7.68 | V6: 5.75 | W6: 8.25 | AB6: 0.07 | AC6: 0.57 | AD6: 5.715 | AE6: 7.965
C7: 3.6 | D7: 30KHz | E7: 40MHz | F7: 2334Hz | G7: 1T1R [FFS] | H7: Type A | I7: 1+1+1 | J7: 2 [FFS] | K7: 2 | L7: -100 | M7: -100 | T7: -3.37 | U7: -1.37 | AB7: 0 | AC7: 0 | AD7: -3.37 | AE7: -1.37
D8: 30KHz | E8: 40MHz | F8: 2334Hz | G8: 1T1R | H8: Type A | I8: 1+1+1 | J8: 2 [FFS] | K8: 16 | L8: -100 | M8: -100 | T8: 8.73 | U8: 10.73 | AB8: 0 | AC8: 0 | AD8: 8.73 | AE8: 10.73
D9: 30KHz | E9: 40MHz | F9: 2334Hz | G9: 1T2R | H9: Type A | I9: 1+1+1 | J9: 2 [FFS] | K9: 2 | L9: -100 | M9: -100 | T9: -6.11 | U9: -4.11 | V9: -5.97 | W9: -3.47 | AB9: 0.14 | AC9: 0.64 | AD9: -6.04 | AE9: -3.79
D10: 30KHz | E10: 40MHz | F10: 2334Hz | H10: Type A | I10: 1+1+1 | J10: 2 [FFS] | K10: 16 | L10: -100 | M10: -100 | T10: 5.79 | U10: 7.79 | V10: 5.74 | W10: 8.24 | AB10: 0.05 | AC10: 0.45 | AD10: 5.765 | AE10: 8.015
B11: Open space | C11: 2.1 | D11: 15KHz | E11: 10MHz | F11: 1340Hz | G11: 1T2R | H11: Type A | I11: 1+1+1 | J11: 2 [FFS] | K11: 2 | L11: -100 | M11: -100 | T11: -6.21 | U11: -4.21 | V11: -6 | W11: -3.5 | AB11: 0.21 | AC11: 0.71 | AD11: -6.105 | AE11: -3.855
C12: 2.1 | D12: 15KHz | E12: 10MHz | F12: 1340Hz | H12: Type A | I12: 1+1+1 | J12: 2 [FFS] | K12: 16 | L12: =DerivingPerfReq(N12:AA12) -> -100 | M12: =IF(L12>-100,L12+0.3,L12) -> -100 | T12: 5.67 | U12: 7.67 | V12: 5.73 | W12: 8.23 | AB12: =MAX(N12,P12,R12,T12,V12,X12,Z12)-MIN(N12,P12,R12,T12,V12,X12,Z12) -> 0.06 | AC12: =MAX(O12,Q12,S12,U12,W12,Y12,AA12)-MIN(O12,Q12,S12,U12,W12,Y12,AA12) -> 0.56 | AD12: =AVERAGE(N12,P12,R12,T12,V12,X12,Z12) -> 5.7 | AE12: =AVERAGE(O12,Q12,S12,U12,W12,Y12,AA12) -> 7.95
C13: 2.1 | D13: 15KHz | E13: 10MHz | F13: 1340Hz | G13: 1T8R | H13: Type A | I13: 1+1+1 | J13: 2 [FFS] | K13: 2 | L13: -100 | M13: -100 | T13: -11.2 | U13: -9.2 | AB13: 0 | AC13: 0 | AD13: -11.2 | AE13: -9.2
C14: 2.1 | D14: 15KHz | E14: 10MHz | F14: 1340Hz | H14: Type A | I14: 1+1+1 | J14: 2 [FFS] | K14: 16 | L14: -100 | M14: -100 | T14: -0.24 | U14: 1.76 | AB14: 0 | AC14: 0 | AD14: -0.24 | AE14: 1.76
C15: 3.6 | D15: 30KHz | E15: 40MHz | F15: 2334Hz | G15: 1T2R | H15: Type A | I15: 1+1+1 | J15: 2 [FFS] | K15: 2 | L15: -100 | M15: -100 | T15: -6.12 | U15: -4.12 | V15: -6.01 | W15: -3.51 | AB15: 0.11 | AC15: 0.61 | AD15: -6.065 | AE15: -3.815
C16: 3.6 | D16: 30KHz | E16: 40MHz | F16: 2334Hz | H16: Type A | I16: 1+1+1 | J16: 2 [FFS] | K16: 16 | L16: -100 | M16: -100 | T16: 5.76 | U16: 7.76 | V16: 5.72 | W16: 8.22 | AB16: 0.04 | AC16: 0.46 | AD16: 5.74 | AE16: 7.99
C17: 3.6 | D17: 30KHz | E17: 40MHz | F17: 2334Hz | G17: 1T8R | H17: Type A | I17: 1+1+1 | J17: 2 [FFS] | K17: 2 | L17: -100 | M17: -100 | T17: -11.05 | U17: -9.05 | AB17: 0 | AC17: 0 | AD17: -11.05 | AE17: -9.05
C18: 3.6 | D18: 30KHz | E18: 40MHz | F18: 2334Hz | H18: Type A | I18: 1+1+1 | J18: 2 [FFS] | K18: 16 | L18: -100 | M18: -100 | T18: -0.11 | U18: 1.89 | AB18: 0 | AC18: 0 | AD18: -0.11 | AE18: 1.89

Sheet PUSCH 500kmph
A1: Channel model | B1: Propagation condition | C1: Carrier frequency (GHz) | D1: SCS | E1: CBW | F1: Maximum Doppler shift | G1: Tx/Rx | H1: PUSCH mapping type | I1: DMRS | J1: l0 | K1: MCS | L1: 38.104 req | M1: 38.141 req | N1: Samsung | P1: ZTE | R1: CMCC | T1: CATT | V1: Nokia | X1: Huawei | Z1: Ericsson | AB1: SPAN | AD1: AVERAGE
N2: Ideal | O2: Impairment | P2: Ideal | Q2: Impairment | R2: Ideal | S2: Impairment | T2: Ideal | U2: Impairment | V2: Ideal | W2: Impairment | X2: Ideal | Y2: Impairment | Z2: Ideal | AA2: Impairment | AB2: Ideal | AC2: Impairment | AD2: Ideal | AE2: Impairment
A3: AWGN | B3: Tunnel | C3: 1.8 | D3: 15KHz | E3: 10MHz | F3: 1740Hz | G3: 1T1R [FFS] | H3: Type A | I3: 1+1+1 | J3: 2 [FFS] | K3: 2 | L3: =DerivingPerfReq(N3:AA3) -> -100 | M3: =IF(L3>-100,L3+0.3,L3) -> -100 | T3: -3.46 | U3: -1.46 | AB3: =MAX(N3,P3,R3,T3,V3,X3,Z3)-MIN(N3,P3,R3,T3,V3,X3,Z3) -> 0 | AC3: 0 | AD3: =AVERAGE(N3,P3,R3,T3,V3,X3,Z3) -> -3.46 | AE3: -1.46
D4: 15KHz | E4: 10MHz | F4: 1740Hz | G4: 1T1R | H4: Type A | I4: 1+1+1 | J4: 2 [FFS] | K4: 16 [FFS] | L4: -100 | M4: -100 | T4: 8.67 | U4: 10.67 | AB4: 0 | AC4: 0 | AD4: 8.67 | AE4: 10.67
D5: 15KHz | E5: 10MHz | F5: 1740Hz | G5: 1T2R | H5: Type A | I5: 1+1+1 | J5: 2 [FFS] | K5: 2 | L5: -100 | M5: -100 | T5: -6.2 | U5: -4.2 | V5: -5.8 | W5: -3.3 | AB5: 0.4 | AC5: 0.9 | AD5: -6 | AE5: -3.75
D6: 15KHz | E6: 10MHz | F6: 1740Hz | G6: 1T2R | H6: Type A | I6: 1+1+1 | J6: 2 [FFS] | K6: 16 [FFS] | L6: -100 | M6: -100 | T6: 5.7 | U6: 7.7 | V6: 6.46 | W6: 8.96 | AB6: 0.76 | AC6: 1.26 | AD6: 6.08 | AE6: 8.33
C7: 3.6 | D7: 30KHz | E7: 40MHz | F7: 3334Hz | G7: 1T1R [FFS] | H7: Type A | I7: 1+1+1 | J7: 2 [FFS] | K7: 2 | L7: -100 | M7: -100 | T7: -3.37 | U7: -1.37 | AB7: 0 | AC7: 0 | AD7: -3.37 | AE7: -1.37
C8: 3.6 | E8: 40MHz | F8: 3334Hz | G8: 1T1R | H8: Type A | I8: 1+1+1 | J8: 2 [FFS] | K8: 16 [FFS] | L8: -100 | M8: -100 | T8: 8.77 | U8: 10.77 | AB8: 0 | AC8: 0 | AD8: 8.77 | AE8: 10.77
C9: 3.6 | E9: 40MHz | F9: 3334Hz | G9: 1T2R | H9: Type A | I9: 1+1+1 | J9: 2 [FFS] | K9: 2 | L9: -100 | M9: -100 | T9: -6.11 | U9: -4.11 | V9: -5.91 | W9: -3.41 | AB9: 0.2 | AC9: 0.7 | AD9: -6.01 | AE9: -3.76
C10: 3.6 | E10: 40MHz | F10: 3334Hz | G10: 1T2R | H10: Type A | I10: 1+1+1 | J10: 2 [FFS] | K10: 16 [FFS] | L10: -100 | M10: -100 | T10: 5.83 | U10: 7.83 | V10: 5.81 | W10: 8.31 | AB10: 0.02 | AC10: 0.48 | AD10: 5.82 | AE10: 8.07
B11: Open space | C11: 1.8 | D11: 15KHz | E11: 10MHz | F11: 1740Hz | G11: 1T2R | H11: Type A | I11: 1+1+1 | J11: 2 [FFS] | K11: 2 | L11: -100 | M11: -100 | T11: -6.21 | U11: -4.21 | V11: -5.97 | W11: -3.47 | AB11: 0.24 | AC11: 0.74 | AD11: -6.09 | AE11: -3.84
C12: 1.8 | D12: 15KHz | E12: 10MHz | F12: 1740Hz | G12: 1T2R | H12: Type A | I12: 1+1+1 | J12: 2 [FFS] | K12: 16 | L12: -100 | M12: -100 | T12: 5.68 | U12: 7.68 | V12: 5.75 | W12: 8.25 | AB12: 0.07 | AC12: 0.57 | AD12: 5.715 | AE12: 7.965
C13: 1.8 | D13: 15KHz | E13: 10MHz | F13: 1740Hz | G13: 1T8R | H13: Type A | I13: 1+1+1 | J13: 2 [FFS] | K13: 2 | L13: -100 | M13: -100 | T13: -11.2 | U13: -9.2 | AB13: 0 | AC13: 0 | AD13: -11.2 | AE13: -9.2
C14: 1.8 | D14: 15KHz | E14: 10MHz | F14: 1740Hz | G14: 1T8R | H14: Type A | I14: 1+1+1 | J14: 2 [FFS] | K14: 16 | L14: -100 | M14: -100 | AB14: 0 | AC14: 0
C15: 3.6 | D15: 30KHz | E15: 40MHz | F15: 3334Hz | G15: 1T2R | H15: Type A | I15: 1+1+1 | J15: 2 [FFS] | K15: 2 | L15: -100 | M15: -100 | T15: -6.12 | U15: -4.12 | V15: -5.98 | W15: -3.48 | AB15: 0.14 | AC15: 0.64 | AD15: -6.05 | AE15: -3.8
C16: 3.6 | D16: 30KHz | E16: 40MHz | F16: 3334Hz | G16: 1T2R | H16: Type A | I16: 1+1+1 | J16: 2 [FFS] | K16: 16 | L16: -100 | M16: -100 | T16: 5.79 | U16: 7.79 | V16: 5.74 | W16: 8.24 | AB16: 0.05 | AC16: 0.45 | AD16: 5.765 | AE16: 8.015
C17: 3.6 | D17: 30KHz | E17: 40MHz | F17: 3334Hz | G17: 1T8R | H17: Type A | I17: 1+1+1 | J17: 2 [FFS] | K17: 2 | L17: -100 | M17: -100 | T17: -11.04 | U17: -9.04 | AB17: 0 | AC17: 0 | AD17: -11.04 | AE17: -9.04
C18: 3.6 | D18: 30KHz | E18: 40MHz | F18: 3334Hz | G18: 1T8R | H18: Type A | I18: 1+1+1 | J18: 2 [FFS] | K18: 16 | L18: -100 | M18: -100 | T18: -0.1 | U18: 1.9 | AB18: 0 | AC18: 0 | AD18: -0.1 | AE18: 1.9

Sheet PUSCH UL timing adjustment
A1: Scenario | B1: PUSCH transmission | C1: SRS transmission | D1: CBW | E1: SCS | F1: Waveform | G1: Tx/Rx | H1: DMRS | I1: l0 | J1: MCS | K1: A | L1: Δω | M1: PUSCH mapping type | N1: 38.104 req | O1: 38.141 req | P1: Samsung | R1: ZTE | T1: CMCC | V1: CATT | X1: Nokia | Z1: Huawei | AB1: Ericsson | AD1: SPAN | AF1: AVERAGE
P2: Ideal | Q2: Impairment | R2: Ideal | S2: Impairment | T2: Ideal | U2: Impairment | V2: Ideal | W2: Impairment | X2: Ideal | Y2: Impairment | Z2: Ideal | AA2: Impairment | AB2: Ideal | AC2: Impairment | AD2: Ideal | AE2: Impairment | AF2: Ideal | AG2: Impairment
A3: Scenario Y | B3: FDD | C3: Enabled | D3: 10MHz | E3: 15KHz | F3: CP-OFDM | G3: 1T2R | H3: 1+1+1 | I3: 2 | J3: 16 | K3: 10us | L3: 0.13s-1 | M3: Type A | N3: =DerivingPerfReq(P3:AC3) -> -100 | O3: =IF(N3>-100,N3+0.3,N3) -> -100 | X3: 5.74 | Y3: 8.24 | AD3: =MAX(P3,R3,T3,V3,X3,Z3,AB3)-MIN(P3,R3,T3,V3,X3,Z3,AB3) -> 0 | AE3: 0 | AF3: =AVERAGE(P3,R3,T3,V3,X3,Z3,AB3) -> 5.74 | AG3: 8.24
D4: 10MHz | E4: 15KHz | F4: CP-OFDM | G4: 1T2R | H4: 1+1+1 | I4: 2 | J4: 16 | K4: 10us | L4: 0.13s-1 | M4: Type B | N4: -100 | O4: -100 | X4: 5.74 | Y4: 8.24 | AD4: 0 | AE4: 0 | AF4: 5.74 | AG4: 8.24
C5: Disabled | D5: 10MHz | E5: 15KHz | F5: CP-OFDM | G5: 1T2R | H5: 1+1+1 | I5: 2 | J5: 16 | K5: 10us | L5: 0.13s-1 | M5: Type A | N5: -100 | O5: -100 | X5: 5.74 | Y5: 8.24 | AD5: 0 | AE5: 0 | AF5: 5.74 | AG5: 8.24
D6: 10MHz | E6: 15KHz | F6: CP-OFDM | G6: 1T2R | H6: 1+1+1 | I6: 2 | J6: 16 | K6: 10us | L6: 0.13s-1 | M6: Type B | N6: -100 | O6: -100 | X6: 5.74 | Y6: 8.24 | AD6: 0 | AE6: 0 | AF6: 5.74 | AG6: 8.24
B7: TDD | C7: Enabled | D7: 10MHz | E7: 15KHz | F7: CP-OFDM | G7: 1T2R | H7: 1+1+1 | I7: 2 | J7: 16 | K7: 10us | L7: 0.13s-1 | M7: Type A | N7: -100 | O7: -100 | X7: 5.71 | Y7: 8.21 | AD7: 0 | AE7: 0 | AF7: 5.71 | AG7: 8.21
D8: 10MHz | E8: 15KHz | F8: CP-OFDM | G8: 1T2R | H8: 1+1+1 | I8: 2 | J8: 16 | K8: 10us | L8: 0.13s-1 | M8: Type B | N8: -100 | O8: -100 | X8: 5.71 | Y8: 8.21 | AD8: 0 | AE8: 0 | AF8: 5.71 | AG8: 8.21
C9: Disabled | D9: 10MHz | E9: 15KHz | F9: CP-OFDM | G9: 1T2R | H9: 1+1+1 | I9: 2 | J9: 16 | K9: 10us | L9: 0.13s-1 | M9: Type A | N9: -100 | O9: -100 | X9: 5.71 | Y9: 8.21 | AD9: 0 | AE9: 0 | AF9: 5.71 | AG9: 8.21
D10: 10MHz | E10: 15KHz | F10: CP-OFDM | G10: 1T2R | H10: 1+1+1 | I10: 2 | J10: 16 | K10: 10us | L10: 0.13s-1 | M10: Type B | N10: -100 | O10: -100 | X10: 5.71 | Y10: 8.21 | AD10: 0 | AE10: 0 | AF10: 5.71 | AG10: 8.21
B11: FDD | C11: Enabled | D11: 40MHz | E11: 30KHz | F11: CP-OFDM | G11: 1T2R | H11: 1+1+1 | I11: 2 | J11: 16 | K11: 5us | L11: 0.26s-1 | M11: Type A | N11: -100 | O11: -100 | X11: 5.7 | Y11: 8.2 | AD11: 0 | AE11: 0 | AF11: 5.7 | AG11: 8.2
D12: 40MHz | E12: 30KHz | F12: CP-OFDM | G12: 1T2R | H12: 1+1+1 | I12: 2 | J12: 16 | K12: 5us | L12: 0.26s-1 | M12: Type B | N12: -100 | O12: -100 | X12: 5.69 | Y12: 8.19 | AD12: 0 | AE12: 0 | AF12: 5.69 | AG12: 8.19
C13: Disabled | D13: 40MHz | E13: 30KHz | F13: CP-OFDM | G13: 1T2R | H13: 1+1+1 | I13: 2 | J13: 16 | K13: 5us | L13: 0.26s-1 | M13: Type A | N13: -100 | O13: -100 | X13: 5.7 | Y13: 8.2 | AD13: 0 | AE13: 0 | AF13: 5.7 | AG13: 8.2
D14: 40MHz | E14: 30KHz | F14: CP-OFDM | G14: 1T2R | H14: 1+1+1 | I14: 2 | J14: 16 | K14: 5us | L14: 0.26s-1 | M14: Type B | N14: -100 | O14: -100 | X14: 5.69 | Y14: 8.19 | AD14: 0 | AE14: 0 | AF14: 5.69 | AG14: 8.19
B15: TDD | C15: Enabled | D15: 40MHz | E15: 30KHz | F15: CP-OFDM | G15: 1T2R | H15: 1+1+1 | I15: 2 | J15: 16 | K15: 5us | L15: 0.26s-1 | M15: Type A | N15: -100 | O15: -100 | X15: 5.67 | Y15: 8.17 | AD15: 0 | AE15: 0 | AF15: 5.67 | AG15: 8.17
D16: 40MHz | E16: 30KHz | F16: CP-OFDM | G16: 1T2R | H16: 1+1+1 | I16: 2 | J16: 16 | K16: 5us | L16: 0.26s-1 | M16: Type B | N16: -100 | O16: -100 | X16: 5.67 | Y16: 8.17 | AD16: 0 | AE16: 0 | AF16: 5.67 | AG16: 8.17
C17: Disabled | D17: 40MHz | E17: 30KHz | F17: CP-OFDM | G17: 1T2R | H17: 1+1+1 | I17: 2 | J17: 16 | K17: 5us | L17: 0.26s-1 | M17: Type A | N17: -100 | O17: -100 | X17: 5.67 | Y17: 8.17 | AD17: 0 | AE17: 0 | AF17: 5.67 | AG17: 8.17
D18: 40MHz | E18: 30KHz | F18: CP-OFDM | G18: 1T2R | H18: 1+1+1 | I18: 2 | J18: 16 | K18: 5us | L18: 0.26s-1 | M18: Type B | N18: -100 | O18: -100 | X18: 5.67 | Y18: 8.17 | AD18: 0 | AE18: 0 | AF18: 5.67 | AG18: 8.17

Sheet PRACH 1.25kHz SCS Type A
A1: Format | B1: SCS | C1: Restricted set type | D1: Ncs | E1: Logical sequence index | F1: v | G1: Tx/Rx | H1: Carrier frequency(GHz) | I1: Propagation condition | J1: Frequency offset (Hz) | K1: Timing error tolerance | L1: 38.104 req | M1: 38.141 req | N1: Samsung | P1: ZTE | R1: CMCC | T1: CATT | V1: Nokia | X1: Huawei | Z1: Ericsson | AB1: SPAN | AD1: AVERAGE
N2: Ideal | O2: Impairment | P2: Ideal | Q2: Impairment | R2: Ideal | S2: Impairment | T2: Ideal | U2: Impairment | V2: Ideal | W2: Impairment | X2: Ideal | Y2: Impairment | Z2: Ideal | AA2: Impairment | AB2: Ideal | AC2: Impairment | AD2: Ideal | AE2: Impairment
A3: Format 0 | B3: 1.25kHz | C3: Type A | D3: 15 | E3: 384 | F3: 0 | G3: 1T2R | H3: 2.1 | I3: AWGN | J3: 625 | K3: 1.04us | L3: =DerivingPerfReq(N3:AA3) -> -100 | M3: =IF(L3>-100,L3+0.3,L3) -> -100 | T3: -13.75 | U3: -11.75 | V3: -14.56 | W3: -12.06 | AB3: =MAX(N3,P3,R3,T3,V3,X3,Z3)-MIN(N3,P3,R3,T3,V3,X3,Z3) -> 0.81 | AC3: 0.31 | AD3: =AVERAGE(N3,P3,R3,T3,V3,X3,Z3) -> -14.155 | AE3: -11.905
A4: Format 0 | B4: 1.25kHz | C4: Type A | D4: 15 | E4: 384 | F4: 0 | G4: 1T2R | H4: 2.1 | I4: AWGN | J4: 1340 | K4: 1.04us | L4: -100 | M4: -100 | T4: -16.35 | U4: -14.35 | V4: -15.2 | W4: -12.7 | AB4: 1.15 | AC4: 1.65 | AD4: -15.775 | AE4: -13.525
A5: Format 0 | B5: 1.25kHz | C5: Type A | D5: 15 | E5: 384 | F5: 0 | G5: 1T2R | H5: 2.1 | I5: TDLC300-100 | J5: 400 | K5: 2.55us | L5: -100 | M5: -100 | T5: -6.67 | U5: -4.67 | V5: -7.52 | W5: -5.02 | AB5: 0.85 | AC5: 0.35 | AD5: -7.095 | AE5: -4.845
A6: Format 0 | B6: 1.25kHz | C6: Type A | D6: 15 | E6: 384 | F6: 0 | G6: 1T4R | H6: 2.1 | I6: AWGN | J6: 625 | K6: 1.04us | L6: -100 | M6: -100 | T6: -16.08 | U6: -14.08 | V6: -16.87 | W6: -14.37 | AB6: =MAX(N6,P6,R6,T6,V6,X6,Z6)-MIN(N6,P6,R6,T6,V6,X6,Z6) -> 0.79 | AC6: =MAX(O6,Q6,S6,U6,W6,Y6,AA6)-MIN(O6,Q6,S6,U6,W6,Y6,AA6) -> 0.29 | AD6: =AVERAGE(N6,P6,R6,T6,V6,X6,Z6) -> -16.475 | AE6: =AVERAGE(O6,Q6,S6,U6,W6,Y6,AA6) -> -14.225
A7: Format 0 | B7: 1.25kHz | C7: Type A | D7: 15 | E7: 384 | F7: 0 | G7: 1T4R | H7: 2.1 | I7: AWGN | J7: 1340 | K7: 1.04us | L7: -100 | M7: -100 | T7: -18.76 | U7: -16.76 | V7: -17.51 | W7: -15.01 | AB7: 1.25 | AC7: 1.75 | AD7: -18.135 | AE7: -15.885
A8: Format 0 | B8: 1.25kHz | C8: Type A | D8: 15 | E8: 384 | F8: 0 | G8: 1T4R | H8: 2.1 | I8: TDLC300-100 | J8: 400 | K8: 2.55us | L8: -100 | M8: -100 | T8: -12.51 | U8: -10.51 | V8: -12.67 | W8: -10.17 | AB8: 0.16 | AC8: 0.34 | AD8: -12.59 | AE8: -10.34
A9: Format 0 | B9: 1.25kHz | C9: Type A | D9: 15 | E9: 384 | F9: 0 | G9: 1T8R | H9: 2.1 | I9: AWGN | J9: 625 | K9: 1.04us | L9: -100 | M9: -100 | T9: -18.12 | U9: -16.12 | V9: -18.96 | W9: -16.46 | AB9: =MAX(N9,P9,R9,T9,V9,X9,Z9)-MIN(N9,P9,R9,T9,V9,X9,Z9) -> 0.84 | AC9: =MAX(O9,Q9,S9,U9,W9,Y9,AA9)-MIN(O9,Q9,S9,U9,W9,Y9,AA9) -> 0.34 | AD9: =AVERAGE(N9,P9,R9,T9,V9,X9,Z9) -> -18.54 | AE9: =AVERAGE(O9,Q9,S9,U9,W9,Y9,AA9) -> -16.29
A10: Format 0 | B10: 1.25kHz | C10: Type A | D10: 15 | E10: 384 | F10: 0 | G10: 1T8R | H10: 2.1 | I10: AWGN | J10: 1340 | K10: 1.04us | L10: -100 | M10: -100 | T10: -20.53 | U10: -18.53 | V10: -19.62 | W10: -17.12 | AB10: 0.91 | AC10: 1.41 | AD10: -20.075 | AE10: -17.825
A11: Format 0 | B11: 1.25kHz | C11: Type A | D11: 15 | E11: 384 | F11: 0 | G11: 1T8R | H11: 2.1 | I11: TDLC300-100 | J11: 400 | K11: 2.55us | L11: =DerivingPerfReq(N11:AA11) -> -100 | M11: =IF(L11>-100,L11+0.3,L11) -> -100 | T11: -14.79 | U11: -12.79 | V11: -16.63 | W11: -14.13 | AB11: =MAX(N11,P11,R11,T11,V11,X11,Z11)-MIN(N11,P11,R11,T11,V11,X11,Z11) -> 1.84 | AC11: =MAX(O11,Q11,S11,U11,W11,Y11,AA11)-MIN(O11,Q11,S11,U11,W11,Y11,AA11) -> 1.34 | AD11: =AVERAGE(N11,P11,R11,T11,V11,X11,Z11) -> -15.71 | AE11: =AVERAGE(O11,Q11,S11,U11,W11,Y11,AA11) -> -13.46

Sheet PRACH 1.25kHz SCS Type B
A1: Format | B1: SCS | C1: Restricted set type | D1: Ncs | E1: Logical sequence index | F1: v | G1: Tx/Rx | H1: Carrier frequency(GHz) | I1: Propagation condition | J1: Frequency offset (Hz) | K1: Timing error tolerance | L1: 38.104 req | M1: 38.141 req | N1: Samsung | P1: ZTE | R1: CMCC | T1: CATT | V1: Nokia | X1: Huawei | Z1: Ericsson | AB1: SPAN | AD1: AVERAGE
N2: Ideal | O2: Impairment | P2: Ideal | Q2: Impairment | R2: Ideal | S2: Impairment | T2: Ideal | U2: Impairment | V2: Ideal | W2: Impairment | X2: Ideal | Y2: Impairment | Z2: Ideal | AA2: Impairment | AB2: Ideal | AC2: Impairment | AD2: Ideal | AE2: Impairment
A3: Format 0 | B3: 1.25kHz | C3: Type B | D3: 15 | E3: 30 | F3: 30 | G3: 1T2R | H3: 2.1 | I3: AWGN | J3: 625 | K3: 1.04us | L3: =DerivingPerfReq(N3:AA3) -> -100 | M3: =IF(L3>-100,L3+0.3,L3) -> -100 | T3: -12.86 | U3: -10.86 | V3: -14.16 | W3: -11.66 | AB3: =MAX(N3,P3,R3,T3,V3,X3,Z3)-MIN(N3,P3,R3,T3,V3,X3,Z3) -> 1.3 | AC3: 0.8 | AD3: =AVERAGE(N3,P3,R3,T3,V3,X3,Z3) -> -13.51 | AE3: -11.26
A4: Format 0 | B4: 1.25kHz | C4: Type B | D4: 15 | E4: 30 | F4: 30 | G4: 1T2R | H4: 2.1 | I4: AWGN | J4: 2334 | K4: 1.04us | L4: -100 | M4: -100 | T4: -15.51 | U4: -13.51 | V4: -14.61 | W4: -12.11 | AB4: 0.9 | AC4: 1.4 | AD4: -15.06 | AE4: -12.81
A5: Format 0 | B5: 1.25kHz | C5: Type B | D5: 15 | E5: 30 | F5: 30 | G5: 1T2R | H5: 2.1 | I5: TDLC300-100 | J5: 400 | K5: 2.55us | L5: -100 | M5: -100 | T5: -5.38 | U5: -3.38 | V5: -6.89 | W5: -4.39 | AB5: 1.51 | AC5: 1.01 | AD5: -6.135 | AE5: -3.885
A6: Format 0 | B6: 1.25kHz | C6: Type B | D6: 15 | E6: 30 | F6: 30 | G6: 1T4R | H6: 2.1 | I6: AWGN | J6: 625 | K6: 1.04us | L6: -100 | M6: -100 | T6: -15.33 | U6: -13.33 | V6: -16.34 | W6: -13.84 | AB6: =MAX(N6,P6,R6,T6,V6,X6,Z6)-MIN(N6,P6,R6,T6,V6,X6,Z6) -> 1.01 | AC6: =MAX(O6,Q6,S6,U6,W6,Y6,AA6)-MIN(O6,Q6,S6,U6,W6,Y6,AA6) -> 0.51 | AD6: =AVERAGE(N6,P6,R6,T6,V6,X6,Z6) -> -15.835 | AE6: =AVERAGE(O6,Q6,S6,U6,W6,Y6,AA6) -> -13.585
A7: Format 0 | B7: 1.25kHz | C7: Type B | D7: 15 | E7: 30 | F7: 30 | G7: 1T4R | H7: 2.1 | I7: AWGN | J7: 2334 | K7: 1.04us | L7: -100 | M7: -100 | T7: -18.01 | U7: -16.01 | V7: -16.72 | W7: -14.22 | AB7: 1.29 | AC7: 1.79 | AD7: -17.365 | AE7: -15.115
A8: Format 0 | B8: 1.25kHz | C8: Type B | D8: 15 | E8: 30 | F8: 30 | G8: 1T4R | H8: 2.1 | I8: TDLC300-100 | J8: 400 | K8: 2.55us | L8: -100 | M8: -100 | T8: -11.81 | U8: -9.81 | V8: -12.12 | W8: -9.62 | AB8: 0.31 | AC8: 0.19 | AD8: -11.965 | AE8: -9.715
A9: Format 0 | B9: 1.25kHz | C9: Type B | D9: 15 | E9: 30 | F9: 30 | G9: 1T8R | H9: 2.1 | I9: AWGN | J9: 625 | K9: 1.04us | L9: -100 | M9: -100 | T9: -17.34 | U9: -15.34 | V9: -18.32 | W9: -15.82 | AB9: =MAX(N9,P9,R9,T9,V9,X9,Z9)-MIN(N9,P9,R9,T9,V9,X9,Z9) -> 0.98 | AC9: =MAX(O9,Q9,S9,U9,W9,Y9,AA9)-MIN(O9,Q9,S9,U9,W9,Y9,AA9) -> 0.48 | AD9: =AVERAGE(N9,P9,R9,T9,V9,X9,Z9) -> -17.83 | AE9: =AVERAGE(O9,Q9,S9,U9,W9,Y9,AA9) -> -15.58
A10: Format 0 | B10: 1.25kHz | C10: Type B | D10: 15 | E10: 30 | F10: 30 | G10: 1T8R | H10: 2.1 | I10: AWGN | J10: 2334 | K10: 1.04us | L10: -100 | M10: -100 | T10: -19.78 | U10: -17.78 | V10: -18.73 | W10: -16.23 | AB10: 1.05 | AC10: 1.55 | AD10: -19.255 | AE10: -17.005
A11: Format 0 | B11: 1.25kHz | C11: Type B | D11: 15 | E11: 30 | F11: 30 | G11: 1T8R | H11: 2.1 | I11: TDLC300-100 | J11: 400 | K11: 2.55us | L11: =DerivingPerfReq(N11:AA11) -> -100 | M11: =IF(L11>-100,L11+0.3,L11) -> -100 | T11: -14.06 | U11: -12.06 | V11: -15.93 | W11: -13.43 | AB11: =MAX(N11,P11,R11,T11,V11,X11,Z11)-MIN(N11,P11,R11,T11,V11,X11,Z11) -> 1.87 | AC11: =MAX(O11,Q11,S11,U11,W11,Y11,AA11)-MIN(O11,Q11,S11,U11,W11,Y11,AA11) -> 1.37 | AD11: =AVERAGE(N11,P11,R11,T11,V11,X11,Z11) -> -14.995 | AE11: =AVERAGE(O11,Q11,S11,U11,W11,Y11,AA11) -> -12.745

Sheet PRACH 15kHz SCS
A1: Format | B1: SCS | C1: Ncs | D1: Logical sequence index | E1: v | F1: Tx/Rx | G1: Carrier frequency(GHz) | H1: Propagation condition | I1: Frequency offset (Hz) | J1: Timing error tolerance | K1: 38.104 req | L1: 38.141 req | M1: Samsung | O1: ZTE | Q1: CMCC | S1: CATT | U1: Nokia | W1: Huawei | Y1: Ericsson | AA1: SPAN | AC1: AVERAGE
M2: Ideal | N2: Impairment | O2: Ideal | P2: Impairment | Q2: Ideal | R2: Impairment | S2: Ideal | T2: Impairment | U2: Ideal | V2: Impairment | W2: Ideal | X2: Impairment | Y2: Ideal | Z2: Impairment | AA2: Ideal | AB2: Impairment | AC2: Ideal | AD2: Impairment
A3: Format A2 | B3: 15kHz | C3: 23 | D3: 0 | E3: 0 | F3: 1T2R | G3: 1.8 | H3: AWGN | I3: 1740 | J3: 0.52us | K3: =DerivingPerfReq(M3:Z3) -> -100 | L3: =IF(K3>-100,K3+0.3,K3) -> -100 | S3: -13.29 | T3: -11.29 | U3: -11.48 | V3: -8.98 | AA3: =MAX(M3,O3,Q3,S3,U3,W3,Y3)-MIN(M3,O3,Q3,S3,U3,W3,Y3) -> 1.81 | AB3: 2.31 | AC3: =AVERAGE(M3,O3,Q3,S3,U3,W3,Y3) -> -12.385 | AD3: -10.135
A4: Format A2 | B4: 15kHz | C4: 23 | D4: 0 | E4: 0 | F4: 1T2R | G4: 1.8 | H4: TDLC300-100 | I4: 400 | J4: 2.03us | K4: -100 | L4: -100 | S4: -6.57 | T4: -4.57 | U4: -7.22 | V4: -4.72 | AA4: 0.65 | AB4: 0.15 | AC4: -6.895 | AD4: -4.645
A5: Format B4 | B5: 15kHz | C5: 23 | D5: 0 | E5: 0 | F5: 1T2R | G5: 1.8 | H5: AWGN | I5: 1740 | J5: 0.52us | K5: -100 | L5: -100 | S5: -16.51 | T5: -14.51 | U5: -15.58 | V5: -13.08 | AA5: 0.93 | AB5: 1.43 | AC5: -16.045 | AD5: -13.795
A6: Format B4 | B6: 15kHz | C6: 23 | D6: 0 | E6: 0 | F6: 1T2R | G6: 1.8 | H6: TDLC300-100 | I6: 400 | J6: 2.03us | K6: =DerivingPerfReq(M6:Z6) -> -100 | L6: =IF(K6>-100,K6+0.3,K6) -> -100 | S6: -9.82 | T6: -7.82 | U6: -11.24 | V6: -8.74 | AA6: =MAX(M6,O6,Q6,S6,U6,W6,Y6)-MIN(M6,O6,Q6,S6,U6,W6,Y6) -> 1.42 | AB6: =MAX(N6,P6,R6,T6,V6,X6,Z6)-MIN(N6,P6,R6,T6,V6,X6,Z6) -> 0.92 | AC6: =AVERAGE(M6,O6,Q6,S6,U6,W6,Y6) -> -10.53 | AD6: =AVERAGE(N6,P6,R6,T6,V6,X6,Z6) -> -8.28
A7: Format C2 | B7: 15kHz | C7: 23 | D7: 0 | E7: 0 | F7: 1T2R | G7: 1.8 | H7: AWGN | I7: 1740 | J7: 0.52us | K7: -100 | L7: -100 | S7: -13.31 | T7: -11.31 | U7: -11.51 | V7: -9.01 | AA7: 1.8 | AB7: 2.3 | AC7: -12.41 | AD7: -10.16
A8: Format C2 | B8: 15kHz | C8: 23 | D8: 0 | E8: 0 | F8: 1T2R | G8: 1.8 | H8: TDLC300-100 | I8: 400 | J8: 2.03us | K8: -100 | L8: -100 | S8: -6.81 | T8: -4.81 | U8: -7.13 | V8: -4.63 | AA8: 0.32 | AB8: 0.18 | AC8: -6.97 | AD8: -4.72
A9: Format A2 | B9: 15kHz | C9: 23 | D9: 0 | E9: 0 | F9: 1T4R | G9: 1.8 | H9: AWGN | I9: 1740 | J9: 0.52us | K9: =DerivingPerfReq(M9:Z9) -> -100 | L9: =IF(K9>-100,K9+0.3,K9) -> -100 | S9: -15.32 | T9: -13.32 | U9: -13.89 | V9: -11.39 | AA9: =MAX(M9,O9,Q9,S9,U9,W9,Y9)-MIN(M9,O9,Q9,S9,U9,W9,Y9) -> 1.43 | AB9: =MAX(N9,P9,R9,T9,V9,X9,Z9)-MIN(N9,P9,R9,T9,V9,X9,Z9) -> 1.93 | AC9: =AVERAGE(M9,O9,Q9,S9,U9,W9,Y9) -> -14.605 | AD9: =AVERAGE(N9,P9,R9,T9,V9,X9,Z9) -> -12.355
A10: Format A2 | B10: 15kHz | C10: 23 | D10: 0 | E10: 0 | F10: 1T4R | G10: 1.8 | H10: TDLC300-100 | I10: 400 | J10: 2.03us | K10: -100 | L10: -100 | S10: -11.22 | T10: -9.22 | U10: -12.17 | V10: -9.67 | AA10: 0.95 | AB10: 0.45 | AC10: -11.695 | AD10: -9.445
A11: Format B4 | B11: 15kHz | C11: 23 | D11: 0 | E11: 0 | F11: 1T4R | G11: 1.8 | H11: AWGN | I11: 1740 | J11: 0.52us | K11: -100 | L11: -100 | S11: -18.49 | T11: -16.49 | U11: -17.6 | V11: -15.1 | AA11: 0.89 | AB11: 1.39 | AC11: -18.045 | AD11: -15.795
A12: Format B4 | B12: 15kHz | C12: 23 | D12: 0 | E12: 0 | F12: 1T4R | G12: 1.8 | H12: TDLC300-100 | I12: 400 | J12: 2.03us | K12: -100 | L12: -100 | S12: -14.24 | T12: -12.24 | U12: -15.23 | V12: -12.73 | AA12: 0.99 | AB12: 0.49 | AC12: -14.735 | AD12: -12.485
A13: Format C2 | B13: 15kHz | C13: 23 | D13: 0 | E13: 0 | F13: 1T4R | G13: 1.8 | H13: AWGN | I13: 1740 | J13: 0.52us | K13: -100 | L13: -100 | S13: -15.34 | T13: -13.34 | U13: -13.89 | V13: -11.39 | AA13: 1.45 | AB13: 1.95 | AC13: -14.615 | AD13: -12.365
A14: Format C2 | B14: 15kHz | C14: 23 | D14: 0 | E14: 0 | F14: 1T4R | G14: 1.8 | H14: TDLC300-100 | I14: 400 | J14: 2.03us | K14: -100 | L14: -100 | S14: -11.23 | T14: -9.23 | U14: -12.21 | V14: -9.71 | AA14: 0.98 | AB14: 0.48 | AC14: -11.72 | AD14: -9.47
A15: Format A2 | B15: 15kHz | C15: 23 | D15: 0 | E15: 0 | F15: 1T8R | G15: 1.8 | H15: AWGN | I15: 1740 | J15: 0.52us | K15: =DerivingPerfReq(M15:Z15) -> -100 | L15: =IF(K15>-100,K15+0.3,K15) -> -100 | S15: -17.35 | T15: -15.35 | U15: -15.51 | V15: -13.01 | AA15: =MAX(M15,O15,Q15,S15,U15,W15,Y15)-MIN(M15,O15,Q15,S15,U15,W15,Y15) -> 1.84 | AB15: =MAX(N15,P15,R15,T15,V15,X15,Z15)-MIN(N15,P15,R15,T15,V15,X15,Z15) -> 2.34 | AC15: =AVERAGE(M15,O15,Q15,S15,U15,W15,Y15) -> -16.43 | AD15: =AVERAGE(N15,P15,R15,T15,V15,X15,Z15) -> -14.18
A16: Format A2 | B16: 15kHz | C16: 23 | D16: 0 | E16: 0 | F16: 1T8R | G16: 1.8 | H16: TDLC300-100 | I16: 400 | J16: 2.03us | K16: -100 | L16: -100 | S16: -14.29 | T16: -12.29 | U16: -15.26 | V16: -12.76 | AA16: 0.97 | AB16: 0.47 | AC16: -14.775 | AD16: -12.525
A17: Format B4 | B17: 15kHz | C17: 23 | D17: 0 | E17: 0 | F17: 1T8R | G17: 1.8 | H17: AWGN | I17: 1740 | J17: 0.52us | K17: -100 | L17: -100 | S17: -20.26 | T17: -18.26 | U17: -19.22 | V17: -16.72 | AA17: 1.04 | AB17: 1.54 | AC17: -19.74 | AD17: -17.49
A18: Format B4 | B18: 15kHz | C18: 23 | D18: 0 | E18: 0 | F18: 1T8R | G18: 1.8 | H18: TDLC300-100 | I18: 400 | J18: 2.03us | K18: -100 | L18: -100 | S18: -17.27 | T18: -15.27 | U18: -19.02 | V18: -16.52 | AA18: 1.75 | AB18: 1.25 | AC18: -18.145 | AD18: -15.895
A19: Format C2 | B19: 15kHz | C19: 23 | D19: 0 | E19: 0 | F19: 1T8R | G19: 1.8 | H19: AWGN | I19: 1740 | J19: 0.52us | K19: -100 | L19: -100 | S19: -17.33 | T19: -15.33 | U19: -15.5 | V19: -13 | AA19: 1.83 | AB19: 2.33 | AC19: -16.415 | AD19: -14.165
A20: Format C2 | B20: 15kHz | C20: 23 | D20: 0 | E20: 0 | F20: 1T8R | G20: 1.8 | H20: TDLC300-100 | I20: 400 | J20: 2.03us | K20: -100 | L20: -100 | S20: -14.26 | T20: -12.26 | U20: -15.5 | V20: -13 | AA20: 1.24 | AB20: 0.74 | AC20: -14.88 | AD20: -12.63

Sheet PRACH 30kHz SCS
A1: Format | B1: SCS | C1: Ncs | D1: Logical sequence index | E1: v | F1: Tx/Rx | G1: Carrier frequency(GHz) | H1: Propagation condition | I1: Frequency offset (Hz) | J1: Timing error tolerance | K1: 38.104 req | L1: 38.141 req | M1: Samsung | O1: ZTE | Q1: CMCC | S1: CATT | U1: Nokia | W1: Huawei | Y1: Ericsson | AA1: SPAN | AC1: AVERAGE
M2: Ideal | N2: Impairment | O2: Ideal | P2: Impairment | Q2: Ideal | R2: Impairment | S2: Ideal | T2: Impairment | U2: Ideal | V2: Impairment | W2: Ideal | X2: Impairment | Y2: Ideal | Z2: Impairment | AA2: Ideal | AB2: Impairment | AC2: Ideal | AD2: Impairment
A3: Format A2 | B3: 30kHz | C3: 46 | D3: 0 | E3: 0 | F3: 1T2R | G3: 3.6 | H3: AWGN | I3: 3334 | J3: 0.26us | K3: =DerivingPerfReq(M3:Z3) -> -100 | L3: =IF(K3>-100,K3+0.3,K3) -> -100 | S3: -13.19 | T3: -11.19 | U3: -13.54 | V3: -11.04 | AA3: =MAX(M3,O3,Q3,S3,U3,W3,Y3)-MIN(M3,O3,Q3,S3,U3,W3,Y3) -> 0.35 | AB3: 0.15 | AC3: =AVERAGE(M3,O3,Q3,S3,U3,W3,Y3) -> -13.365 | AD3: -11.115
A4: Format A2 | B4: 30kHz | C4: 46 | D4: 0 | E4: 0 | F4: 1T2R | G4: 3.6 | H4: TDLC300-100 | I4: 400 | J4: 1.77us | K4: -100 | L4: -100 | S4: -7.03 | T4: -5.03 | U4: -7.55 | V4: -5.05 | AA4: 0.52 | AB4: 0.02 | AC4: -7.29 | AD4: -5.04
A5: Format B4 | B5: 30kHz | C5: 46 | D5: 0 | E5: 0 | F5: 1T2R | G5: 3.6 | H5: AWGN | I5: 3334 | J5: 0.26us | K5: -100 | L5: -100 | S5: -16.41 | T5: -14.41 | U5: -17.31 | V5: -14.81 | AA5: 0.9 | AB5: 0.4 | AC5: -16.86 | AD5: -14.61
A6: Format B4 | B6: 30kHz | C6: 46 | D6: 0 | E6: 0 | F6: 1T2R | G6: 3.6 | H6: TDLC300-100 | I6: 400 | J6: 1.77us | K6: -100 | L6: -100 | S6: -10.09 | T6: -8.09 | U6: -11.21 | V6: -8.71 | AA6: 1.12 | AB6: 0.62 | AC6: -10.65 | AD6: -8.4
A7: Format C2 | B7: 30kHz | C7: 46 | D7: 0 | E7: 0 | F7: 1T2R | G7: 3.6 | H7: AWGN | I7: 3334 | J7: 0.26us | K7: -100 | L7: -100 | S7: -13.19 | T7: -11.19 | U7: -13.55 | V7: -11.05 | AA7: 0.36 | AB7: 0.14 | AC7: -13.37 | AD7: -11.12
A8: Format C2 | B8: 30kHz | C8: 46 | D8: 0 | E8: 0 | F8: 1T2R | G8: 3.6 | H8: TDLC300-100 | I8: 400 | J8: 1.77us | K8: -100 | L8: -100 | S8: -7.02 | T8: -5.02 | U8: -7.46 | V8: -4.96 | AA8: 0.44 | AB8: 0.06 | AC8: -7.24 | AD8: -4.99
A9: Format A2 | B9: 30kHz | C9: 46 | D9: 0 | E9: 0 | F9: 1T4R | G9: 3.6 | H9: AWGN | I9: 3334 | J9: 0.26us | K9: =DerivingPerfReq(M9:Z9) -> -100 | L9: =IF(K9>-100,K9+0.3,K9) -> -100 | S9: -15.25 | T9: -13.25 | U9: -15.68 | V9: -13.18 | AA9: =MAX(M9,O9,Q9,S9,U9,W9,Y9)-MIN(M9,O9,Q9,S9,U9,W9,Y9) -> 0.43 | AB9: =MAX(N9,P9,R9,T9,V9,X9,Z9)-MIN(N9,P9,R9,T9,V9,X9,Z9) -> 0.07 | AC9: =AVERAGE(M9,O9,Q9,S9,U9,W9,Y9) -> -15.465 | AD9: =AVERAGE(N9,P9,R9,T9,V9,X9,Z9) -> -13.215
A10: Format A2 | B10: 30kHz | C10: 46 | D10: 0 | E10: 0 | F10: 1T4R | G10: 3.6 | H10: TDLC300-100 | I10: 400 | J10: 1.77us | K10: -100 | L10: -100 | S10: -11.32 | T10: -9.32 | U10: -11.43 | V10: -8.93 | AA10: 0.11 | AB10: 0.39 | AC10: -11.375 | AD10: -9.125
A11: Format B4 | B11: 30kHz | C11: 46 | D11: 0 | E11: 0 | F11: 1T4R | G11: 3.6 | H11: AWGN | I11: 3334 | J11: 0.26us | K11: -100 | L11: -100 | S11: -18.33 | T11: -16.33 | U11: -19.26 | V11: -16.76 | AA11: 0.93 | AB11: 0.43 | AC11: -18.795 | AD11: -16.545
A12: Format B4 | B12: 30kHz | C12: 46 | D12: 0 | E12: 0 | F12: 1T4R | G12: 3.6 | H12: TDLC300-100 | I12: 400 | J12: 1.77us | K12: -100 | L12: -100 | S12: -14.14 | T12: -12.14 | U12: -14.84 | V12: -12.34 | AA12: 0.7 | AB12: 0.2 | AC12: -14.49 | AD12: -12.24
A13: Format C2 | B13: 30kHz | C13: 46 | D13: 0 | E13: 0 | F13: 1T4R | G13: 3.6 | H13: AWGN | I13: 3334 | J13: 0.26us | K13: -100 | L13: -100 | S13: -15.25 | T13: -13.25 | U13: -15.7 | V13: -13.2 | AA13: 0.45 | AB13: 0.05 | AC13: -15.475 | AD13: -13.225
A14: Format C2 | B14: 30kHz | C14: 46 | D14: 0 | E14: 0 | F14: 1T4R | G14: 3.6 | H14: TDLC300-100 | I14: 400 | J14: 1.77us | K14: -100 | L14: -100 | S14: -11.1 | T14: -9.1 | U14: -11.45 | V14: -8.95 | AA14: 0.35 | AB14: 0.15 | AC14: -11.275 | AD14: -9.025
A15: Format A2 | B15: 30kHz | C15: 46 | D15: 0 | E15: 0 | F15: 1T8R | G15: 3.6 | H15: AWGN | I15: 3334 | J15: 0.26us | K15: =DerivingPerfReq(M15:Z15) -> -100 | L15: =IF(K15>-100,K15+0.3,K15) -> -100 | S15: -17.27 | T15: -15.27 | U15: -17.43 | V15: -14.93 | AA15: =MAX(M15,O15,Q15,S15,U15,W15,Y15)-MIN(M15,O15,Q15,S15,U15,W15,Y15) -> 0.16 | AB15: =MAX(N15,P15,R15,T15,V15,X15,Z15)-MIN(N15,P15,R15,T15,V15,X15,Z15) -> 0.34 | AC15: =AVERAGE(M15,O15,Q15,S15,U15,W15,Y15) -> -17.35 | AD15: =AVERAGE(N15,P15,R15,T15,V15,X15,Z15) -> -15.1
A16: Format A2 | B16: 30kHz | C16: 46 | D16: 0 | E16: 0 | F16: 1T8R | G16: 3.6 | H16: TDLC300-100 | I16: 400 | J16: 1.77us | K16: -100 | L16: -100 | S16: -14.26 | T16: -12.26 | U16: -14.25 | V16: -11.75 | AA16: 0.01 | AB16: 0.51 | AC16: -14.255 | AD16: -12.005
A17: Format B4 | B17: 30kHz | C17: 46 | D17: 0 | E17: 0 | F17: 1T8R | G17: 3.6 | H17: AWGN | I17: 3334 | J17: 0.26us | K17: -100 | L17: -100 | S17: -20.2 | T17: -18.2 | U17: -20.8 | V17: -18.3 | AA17: 0.6 | AB17: 0.1 | AC17: -20.5 | AD17: -18.25
A18: Format B4 | B18: 30kHz | C18: 46 | D18: 0 | E18: 0 | F18: 1T8R | G18: 3.6 | H18: TDLC300-100 | I18: 400 | J18: 1.77us | K18: -100 | L18: -100 | S18: -17.23 | T18: -15.23 | U18: -17.67 | V18: -15.17 | AA18: 0.44 | AB18: 0.06 | AC18: -17.45 | AD18: -15.2
A19: Format C2 | B19: 30kHz | C19: 46 | D19: 0 | E19: 0 | F19: 1T8R | G19: 3.6 | H19: AWGN | I19: 3334 | J19: 0.26us | K19: -100 | L19: -100 | S19: -17.24 | T19: -15.24 | U19: -17.39 | V19: -14.89 | AA19: 0.15 | AB19: 0.35 | AC19: -17.315 | AD19: -15.065
A20: Format C2 | B20: 30kHz | C20: 46 | D20: 0 | E20: 0 | F20: 1T8R | G20: 3.6 | H20: TDLC300-100 | I20: 400 | J20: 1.77us | K20: =DerivingPerfReq(M20:Z20) -> -100 | L20: =IF(K20>-100,K20+0.3,K20) -> -100 | S20: -14.32 | T20: -12.32 | U20: -14.29 | V20: -11.79 | AA20: =MAX(M20,O20,Q20,S20,U20,W20,Y20)-MIN(M20,O20,Q20,S20,U20,W20,Y20) -> 0.03 | AB20: =MAX(N20,P20,R20,T20,V20,X20,Z20)-MIN(N20,P20,R20,T20,V20,X20,Z20) -> 0.53 | AC20: =AVERAGE(M20,O20,Q20,S20,U20,W20,Y20) -> -14.305 | AD20: =AVERAGE(N20,P20,R20,T20,V20,X20,Z20) -> -12.055
